bitfinex/quotes_ETHUSD_20251031
["timestamp","ask_amount","ask_price","bid_price","bid_amount"]
[1761921360514,0.1925,3864.5,3862.8,0.02588795]
[1761921360840,0.6814,3864.5,3863.7,1.39968]
[1761921361011,0.6814,3864.5,3864.0,1.39968]
[1761921361231,0.006,3864.7,3864.1,0.02587924]
[1761921361430,0.4889,3864.6,3864.1,0.02587924]
[1761921361661,0.4667,3864.2,3863.5,1.39968]
[1761921361958,0.4667,3864.2,3863.7,1.39968]
[1761921362165,0.4667,3864.2,3863.5,0.40424617]
[1761921362461,0.4889,3864.6,3863.5,0.40424617]
[1761921362462,0.4889,3864.6,3863.8,1.39968]
[1761921362757,0.4889,3864.6,3863.9,0.02588058]
[1761921363268,0.4889,3864.6,3863.9,1.42556058]
[1761921363560,0.4889,3864.6,3864.0,1.39968]
[1761921363762,0.4889,3864.6,3864.1,0.02587924]
[1761921363928,0.006,3864.7,3864.1,0.02587924]
[1761921364254,0.006,3864.7,3864.1,1.42555924]
[1761921365265,0.006,3864.7,3864.1,2.61376498]
[1761921365446,0.006,3864.7,3864.1,0.686029]
[1761921365764,0.4949,3864.7,3863.5,0.1722]
[1761921365961,0.4667,3864.1,3863.3,2.58840494]
[1761921366281,0.4667,3864.1,3863.0,0.0544]
[1761921366282,0.4949,3864.7,3863.5,1.39968]
[1761921366491,0.4949,3864.7,3863.6,1.39968]
[1761921367200,0.6592,3863.7,3863.0,0.0544]
[1761921367348,0.4667,3863.6,3862.2,0.1742]
[1761921367689,0.4667,3863.6,3863.1,2.58855144]
[1761921367845,0.4667,3863.6,3863.0,3.98832595]
[1761921368050,0.4667,3863.6,3863.0,2.58864595]
[1761921368248,0.6814,3863.7,3863.1,0.08028594]
[1761921368249,0.1925,3863.7,3863.1,0.08028594]
[1761921368549,0.1925,3863.9,3863.4,0.1288]
[1761921368768,0.006,3864.7,3863.4,0.1288]
[1761921368769,0.4889,3864.5,3863.5,0.02588326]
[1761921369101,0.006,3864.7,3864.0,1.39968]
[1761921369397,0.006,3864.7,3864.3,0.1288]
[1761921369577,0.006,3864.7,3864.4,0.02587723]
[1761921369777,0.006,3864.7,3863.5,3.80808881]
[1761921369778,0.4889,3864.6,3862.2,0.1742]
[1761921370100,0.4889,3864.6,3862.4,6.46432716]
[1761921370101,0.4667,3864.3,3862.4,6.46432716]
[1761921370295,0.4667,3864.3,3863.1,1.62628]
[1761921370605,0.4667,3864.3,3863.2,0.80886072]
[1761921370813,0.4667,3864.3,3863.5,2.58826824]
[1761921370958,0.4667,3864.3,3863.8,1.39968]
[1761921371293,0.4667,3864.3,3864.0,1.39968]
[1761921371493,0.4667,3864.3,3864.1,0.02587924]
[1761921372365,0.9556,3864.2,3863.1,1.45408]
[1761921372564,0.4667,3864.0,3863.1,1.45408]
[1761921372787,0.4667,3864.0,3863.5,3.98796295]
[1761921372969,0.9556,3864.0,3863.5,3.98796295]
[1761921373184,0.1871,3863.9,3863.1,0.0544]
[1761921373387,0.1871,3863.9,3863.4,2.58835627]
[1761921373697,0.1925,3863.9,3863.3,2.58844584]
[1761921373901,0.001,3864.5,3863.8,0.1722]
[1761921374052,0.4899,3864.5,3863.3,1.0504853]
[1761921374257,0.4899,3864.5,3863.7,2.58812607]
[1761921374569,0.001,3864.5,3864.3,1.39968]
[1761921374768,0.001,3864.5,3864.4,4.01328106]
[1761921375168,0.001,3864.5,3864.4,4.18548106]
[1761921375397,0.001,3864.5,3864.4,5.6640273]
[1761921375553,0.001,3864.5,3864.4,5.63815007]
[1761921375759,0.001,3864.5,3864.4,5.46595007]
[1761921375958,0.001,3864.5,3864.4,5.63815007]
[1761921376912,0.001,3864.5,3864.4,5.46595007]
[1761921377075,0.001,3864.5,3864.4,5.63815007]
[1761921377601,0.001,3864.5,3864.4,5.46595007]
[1761921378219,0.001,3864.5,3864.4,5.63815007]
[1761921378423,0.001,3864.5,3864.4,6.04365407]
[1761921378788,0.005,3865.7,3865.4,2.58700339]
[1761921378987,0.005,3865.7,3865.6,4.27660052]
[1761921379302,0.005,3865.7,3865.6,4.70797372]
[1761921379509,0.005,3865.7,3865.6,4.88017372]
[1761921380041,0.4,3866.6,3866.5,2.99182237]
[1761921380217,0.405,3866.7,3866.6,2.58625148]
[1761921380371,0.405,3866.7,3866.6,4.15813148]
[1761921380568,0.405,3866.7,3866.6,4.73583548]
[1761921381173,0.8959,3866.7,3866.6,1.39968]
[1761921381376,0.405,3866.7,3866.6,1.57188]
[1761921381792,0.4042,3866.7,3866.6,2.01357536]
[1761921382023,0.4042,3866.7,3866.6,4.18399399]
[1761921382393,0.4042,3866.7,3866.6,4.15813148]
[1761921382815,0.8754,3866.7,3866.6,1.39968]
[1761921383002,1.3652,3866.7,3866.6,1.39968]
[1761921383386,0.8754,3866.7,3866.6,1.39968]
[1761921383594,0.4042,3866.7,3866.6,1.39968]
[1761921384130,0.4042,3866.7,3866.6,4.96482128]
[1761921384303,0.4042,3866.7,3866.6,5.16288379]
[1761921386529,0.4042,3866.7,3866.6,4.96482128]
[1761921386742,0.4042,3866.7,3866.6,1.9730658]
[1761921386882,1.3652,3866.7,3865.4,0.1722]
[1761921387084,0.4042,3866.7,3866.2,6.46232716]
[1761921387325,0.4042,3866.7,3866.6,0.1722]
[1761921387686,0.4042,3866.7,3866.6,2.75845148]
[1761921387886,0.4042,3866.7,3866.6,3.48493702]
[1761921388287,0.4042,3866.7,3866.6,3.31273702]
[1761921388532,0.4042,3866.7,3866.6,3.89044102]
[1761921388906,0.4042,3866.7,3866.6,3.71824102]
[1761921389503,0.4042,3866.7,3866.6,3.31273702]
[1761921390090,0.4042,3866.7,3866.6,3.14053702]
[1761921390322,0.4042,3866.7,3866.6,3.98593148]
[1761921390637,0.8754,3866.7,3865.7,6.46232716]
[1761921390935,0.4042,3866.7,3866.6,2.58625148]
[1761921391236,0.4042,3866.7,3866.6,3.45804463]
[1761921391391,0.4052,3866.7,3866.6,3.28584463]
[1761921393233,0.4052,3866.7,3866.6,3.45804463]
[1761921393527,0.4052,3866.7,3866.6,3.86354863]
[1761921393912,0.4052,3866.7,3866.6,3.69134863]
[1761921394116,0.4052,3866.7,3866.6,3.51914863]
[1761921394341,0.4052,3866.7,3866.6,3.11364463]
[1761921394629,0.4052,3866.7,3866.6,2.71505148]
[1761921394790,0.8764,3866.7,3866.6,0.1288]
[1761921394994,0.4052,3866.7,3866.6,2.71505148]
[1761921395226,0.8764,3866.7,3866.6,0.1288]
[1761921395423,1.3662,3866.7,3866.6,2.71505148]
[1761921395590,1.3662,3866.7,3866.6,4.11473148]
[1761921396002,0.8764,3866.7,3866.6,4.11473148]
[1761921396294,0.4052,3866.7,3866.6,4.11473148]
[1761921396633,1.3662,3866.7,3865.2,6.58012716]
[1761921396792,0.4712,3866.5,3865.3,0.02587121]
[1761921396991,0.4712,3866.5,3865.9,2.58667205]
[1761921397228,0.4898,3866.4,3865.2,9.04948846]
[1761921397428,0.4898,3866.4,3865.3,3.50924908]
[1761921397728,0.4898,3866.4,3866.2,1.39968]
[1761921397906,0.4898,3866.4,3866.2,3.98618398]
[1761921398108,0.4052,3866.7,3866.6,3.98593148]
[1761921398309,0.4052,3866.7,3866.6,1.39968]
[1761921398520,0.8764,3866.7,3866.6,1.39968]
[1761921399035,1.3662,3866.7,3866.6,1.39968]
[1761921399742,1.52241,3866.7,3864.6,0.57184245]
[1761921399896,0.1908,3865.6,3865.1,2.5871956]
[1761921400091,0.1908,3865.6,3864.6,0.1178]
[1761921400296,0.4898,3865.5,3864.7,2.58750705]
[1761921400845,0.4898,3865.5,3864.8,3.98710468]
[1761921401008,0.4898,3865.5,3865.0,1.39968]
[1761921401211,0.4898,3865.5,3864.8,2.5874438]
[1761921401425,0.4898,3865.5,3864.7,3.10500192]
[1761921401601,0.4898,3865.5,3865.0,1.39968]
[1761921401798,0.4898,3865.5,3865.0,2.58732085]
[1761921402119,0.1908,3865.6,3865.1,0.02587255]
[1761921402325,0.1908,3865.6,3865.2,1.39968]
[1761921402525,0.1908,3865.6,3865.4,2.5870415]
[1761921402697,0.6806,3865.6,3865.4,2.61290619]
[1761921402905,0.1908,3865.6,3865.4,2.61290619]
[1761921403110,0.1908,3865.6,3865.5,3.98666745]
[1761921403542,0.1959,3865.9,3865.6,1.39968]
[1761921403710,0.4898,3866.4,3865.9,1.39968]
[1761921403909,0.4898,3866.4,3866.0,2.61251651]
[1761921404109,0.56141,3866.7,3865.5,6.46232716]
[1761921404110,0.4052,3866.7,3865.6,1.39968]
[1761921404332,0.4898,3866.4,3866.1,1.39968]
[1761921404514,0.4898,3866.4,3866.1,2.58656821]
[1761921404709,0.4712,3866.2,3865.6,2.20310072]
[1761921405028,0.4052,3866.7,3865.7,0.43137253]
[1761921405224,0.4052,3866.7,3866.6,3.98593148]
[1761921405426,0.8764,3866.7,3866.6,1.39968]
[1761921405619,1.3662,3866.7,3866.6,1.39968]
[1761921406221,1.52241,3866.7,3864.4,0.665304]
[1761921406433,0.1488,3866.4,3865.2,0.1888]
[1761921406643,0.1488,3866.4,3866.3,0.1288]
[1761921407005,0.148,3866.4,3866.3,0.1288]
[1761921407406,0.623,3866.4,3866.3,0.1288]
[1761921407944,0.148,3866.4,3866.3,0.15466452]
[1761921408106,0.148,3866.4,3866.3,0.1288]
[1761921408440,0.623,3866.4,3866.3,0.1288]
[1761921408807,0.148,3866.4,3866.3,0.1288]
[1761921409308,0.623,3866.4,3866.3,0.1288]
[1761921411046,0.623,3866.4,3865.6,1.39968]
[1761921411235,0.623,3866.4,3865.9,1.39968]
[1761921411566,0.148,3866.4,3866.1,1.39968]
[1761921412156,0.463,3866.2,3866.0,1.39968]
[1761921412355,0.463,3866.2,3865.4,4.45597962]
[1761921412558,0.475,3866.4,3866.0,2.58664847]
[1761921412755,0.475,3866.4,3865.5,1.28525696]
[1761921412938,0.475,3866.4,3866.0,1.39968]
[1761921413469,0.463,3866.1,3864.8,0.002]
[1761921413671,0.17,3866.0,3864.8,0.002]
[1761921413894,0.6356,3865.2,3864.8,0.002]
[1761921414356,1.1106,3865.2,3864.8,0.002]
[1761921415851,1.1106,3865.2,3864.8,0.02787456]
[1761921416662,1.1106,3865.2,3864.8,1.42755456]
[1761921416864,1.1106,3865.2,3864.8,0.02787456]
[1761921417068,1.1106,3865.2,3864.8,0.002]
[1761921417378,0.1933,3866.0,3865.3,1.39968]
[1761921417558,0.475,3865.9,3865.4,0.02587054]
[1761921417731,0.475,3865.9,3865.2,3.98685614]
[1761921417932,0.475,3865.9,3865.5,1.39968]
[1761921418131,0.475,3865.9,3865.6,0.0258692]
[1761921418672,0.475,3866.4,3865.2,1.39968]
[1761921418871,0.475,3866.4,3865.1,6.98582716]
[1761921418872,0.475,3866.4,3865.1,6.51652716]
[1761921419176,0.475,3866.4,3865.4,1.39968]
[1761921419485,0.475,3866.4,3865.1,0.002]
[1761921419634,0.1725,3865.2,3865.1,0.002]
[1761921420333,0.1933,3865.3,3865.1,0.02787255]
[1761921420529,0.1933,3865.3,3865.1,0.002]
[1761921420530,0.938,3865.2,3865.1,0.002]
[1761921421154,1.343504,3865.2,3864.8,0.002]
[1761921421357,0.405504,3864.8,3863.5,0.1288]
[1761921421556,0.1734,3864.2,3863.5,0.1288]
[1761921422082,0.6484,3864.2,3863.5,0.1288]
[1761921422787,0.1734,3864.2,3863.9,0.1288]
[1761921423070,0.6484,3864.2,3863.7,0.002]
[1761921424283,0.405504,3864.1,3863.7,0.002]
[1761921424585,0.405504,3864.1,3863.1,0.005]
[1761921424586,0.405504,3863.7,3863.1,0.005]
[1761921424739,0.405504,3863.1,3862.4,0.002]
[1761921424937,0.6333,3862.5,3862.4,0.002]
[1761921425287,0.1814,3862.4,3862.0,0.002]
[1761921425441,0.4374,3862.3,3862.0,0.002]
[1761921425841,0.1933,3862.7,3862.2,0.02789197]
[1761921426148,0.59939747,3863.1,3862.4,1.39968]
[1761921426362,0.1933,3863.1,3862.6,1.39968]
[1761921426580,0.1933,3863.1,3862.6,2.58891283]
[1761921426782,0.475,3864.0,3862.7,1.86898]
[1761921427086,0.1933,3863.9,3863.3,2.58845008]
[1761921427253,0.475,3864.3,3863.4,0.02588393]
[1761921427578,0.475,3864.3,3863.5,0.02588326]
[1761921427735,0.475,3864.3,3862.9,6.3437177]
[1761921427736,0.475,3864.3,3862.8,1.39968]
[1761921427937,0.1933,3863.4,3862.8,0.19299488]
[1761921428162,0.4095,3862.9,3862.2,0.252]
[1761921428533,0.1933,3863.4,3862.2,0.252]
[1761921428534,0.463,3862.3,3862.2,0.252]
[1761921429668,0.938,3862.3,3862.2,0.252]
[1761921429869,0.405504,3863.7,3862.2,0.9289]
[1761921430065,0.1933,3864.0,3862.5,1.39968]
[1761921430265,0.1933,3864.0,3862.8,1.39968]
[1761921430476,0.6683,3864.0,3862.7,1.39968]
[1761921430680,0.6683,3864.0,3862.8,1.42556795]
[1761921430849,0.6683,3864.0,3863.4,2.58838707]
[1761921431054,0.6683,3864.0,3863.5,1.42556326]
[1761921431276,0.6683,3864.0,3863.5,1.39968]
[1761921431493,0.475,3863.9,3863.4,1.39968]
[1761921431779,0.463,3863.5,3862.6,0.18948713]
[1761921431981,0.1425,3863.4,3862.6,2.58886661]
[1761921432142,0.6167,3863.4,3862.7,1.39968]
[1761921432341,0.6167,3863.4,3862.1,0.007]
[1761921432591,0.475,3863.3,3862.4,1.39968]
[1761921432743,0.475,3863.3,3862.2,0.252]
[1761921432939,0.475,3863.3,3862.6,1.39968]
[1761921433243,0.6683,3864.0,3863.1,1.39968]
[1761921433478,0.6683,3864.0,3863.2,0.02588527]
[1761921433675,0.6683,3864.0,3863.4,1.39968]
[1761921433843,0.6683,3864.0,3863.6,1.39968]
[1761921433844,0.1933,3864.0,3863.6,1.39968]
[1761921434050,0.1933,3864.0,3863.7,0.02588192]
[1761921434554,0.463,3863.8,3863.4,0.1288]
[1761921435062,0.463,3863.5,3863.4,0.1288]
[1761921435444,0.938,3863.5,3863.4,0.1288]
[1761921435647,0.1933,3864.0,3863.4,0.1288]
[1761921435946,0.1933,3864.0,3863.4,2.71714066]
[1761921436141,0.1933,3864.0,3863.6,3.98793723]
[1761921436385,0.1933,3864.0,3863.7,0.02588192]
[1761921436880,0.1933,3864.0,3863.4,0.1288]
[1761921437082,0.4934,3864.7,3863.6,2.58825965]
[1761921437377,0.4934,3864.7,3863.7,1.42556192]
[1761921437581,0.4934,3864.7,3863.7,2.61403168]
[1761921437748,0.4934,3864.7,3863.7,1.42556192]
[1761921437943,0.4934,3864.7,3863.7,0.02588192]
[1761921438560,0.4934,3864.7,3864.0,1.39968]
[1761921438755,0.4934,3864.7,3864.1,0.02587924]
[1761921439265,0.005,3864.7,3864.1,1.42555924]
[1761921439464,0.005,3864.7,3864.1,1.55435924]
[1761921439684,0.005,3864.7,3864.1,0.15467924]
[1761921439889,0.4871,3864.2,3864.1,0.1288]
[1761921440217,0.4871,3864.2,3862.7,0.4977]
[1761921440491,0.4667,3864.1,3863.6,0.1288]
[1761921440850,0.6218,3863.7,3863.6,0.1288]
[1761921441270,1.0885,3863.7,3863.6,0.1288]
[1761921441491,1.0885,3863.7,3863.2,0.02588527]
[1761921441694,1.0885,3863.7,3863.2,1.52848]
[1761921441865,0.4667,3864.2,3863.3,0.0258846]
[1761921442065,0.4667,3864.6,3863.5,1.39968]
[1761921442265,0.6776,3863.6,3862.5,0.4977]
[1761921442470,0.6776,3863.6,3862.6,0.02588929]
[1761921442671,0.6776,3863.6,3862.9,1.39968]
[1761921443114,0.6776,3863.6,3863.0,0.02588661]
[1761921443466,0.6776,3863.6,3862.6,1.39968]
[1761921443671,0.6776,3863.6,3862.9,0.25]
[1761921443672,0.4667,3863.5,3862.9,0.25]
[1761921443873,0.4871,3863.0,3862.9,0.25]
[1761921444174,0.4667,3863.5,3862.9,0.25]
[1761921444375,0.1905,3863.9,3863.2,1.39968]
[1761921444584,0.4667,3864.1,3863.0,1.39968]
[1761921444785,0.4667,3864.4,3863.0,2.24878977]
[1761921444990,0.4667,3864.4,3863.0,2.74648977]
[1761921445174,0.4667,3864.4,3863.6,2.58821091]
[1761921445371,0.4667,3864.4,3863.5,2.58831155]
[1761921445684,0.4667,3864.4,3862.9,0.25]
[1761921445883,0.001,3863.9,3863.5,2.58828587]
[1761921446107,0.001,3863.9,3863.5,2.58826756]
[1761921446305,0.001,3863.9,3863.6,1.39968]
[1761921446500,0.001,3863.9,3863.6,2.58823907]
[1761921446675,0.001,3863.9,3863.0,5.19518104]
[1761921446875,0.001,3863.9,3863.8,2.58812567]
[1761921447098,0.001,3863.9,3863.1,2.4418981]
[1761921447382,0.6582,3863.9,3863.2,2.58847928]
[1761921447778,0.4667,3863.8,3863.0,1.39968]
[1761921448118,0.128,3863.1,3862.3,2.5890715]
[1761921448290,0.128,3863.1,3862.5,2.58898324]
[1761921449116,0.128,3863.1,3862.4,2.58905969]
[1761921449419,0.9502,3863.0,3862.9,0.1171]
[1761921449623,1.355704,3863.0,3862.9,0.1171]
[1761921449783,1.4912744,3863.0,3862.9,0.1171]
[1761921451124,12.93109606,3863.0,3862.9,0.1171]
[1761921451483,9.9369304,3863.0,3862.9,0.1171]
[1761921451683,8.0491504,3863.0,3862.9,0.1171]
[1761921451912,1.4698744,3863.0,3862.9,0.1171]
[1761921452122,1.0643704,3863.0,3862.9,0.1171]
[1761921453121,1.4698744,3863.0,3862.9,0.1171]
[1761921457385,1.4690744,3863.0,3862.9,0.1171]
[1761921458986,0.9288,3863.0,3862.9,0.1171]
[1761921461730,0.1915,3863.9,3862.9,0.1171]
[1761921461933,0.4667,3863.8,3863.0,0.02588661]
[1761921462991,0.1915,3863.9,3862.9,0.1171]
[1761921463192,0.1915,3863.9,3863.0,0.02588661]
[1761921463429,0.1915,3863.9,3862.9,0.1171]
[1761921463430,0.6582,3863.9,3862.9,0.1171]
[1761921463733,0.405504,3863.8,3862.9,0.1191]
[1761921463888,0.873204,3863.8,3862.9,0.1191]
[1761921464094,0.4667,3863.7,3862.9,0.1191]
[1761921465030,0.405504,3863.6,3862.9,0.1191]
[1761921465392,0.4667,3863.5,3862.9,0.1191]
[1761921466006,0.406504,3863.8,3862.9,0.1191]
[1761921466224,0.001,3863.8,3863.0,0.02588661]
[1761921466557,0.001,3863.8,3863.1,0.20423666]
[1761921466863,0.001,3863.8,3863.2,0.02588527]
[1761921467160,0.001,3863.8,3863.1,0.1862]
[1761921467321,0.001,3863.8,3862.9,0.1191]
[1761921467522,0.4915,3863.8,3862.9,0.1191]
[1761921467935,0.4625,3863.0,3862.9,0.1191]
[1761921468228,0.868004,3863.0,3862.9,0.1191]
[1761921468421,1.358204,3863.0,3862.9,0.1191]
[1761921468627,1.4940244,3863.0,3862.9,0.1191]
[1761921470179,7.4923284,3863.0,3862.9,0.1191]
[1761921470385,9.9065104,3863.0,3862.9,0.1191]
[1761921470535,9.3585924,3863.0,3862.9,0.1191]
[1761921471062,5.6236364,3863.0,3862.9,0.1191]
[1761921471273,1.4940244,3863.0,3862.9,0.1191]
[1761921472565,6.4887724,3863.0,3862.9,0.1191]
[1761921472764,1.4940244,3863.0,3862.9,0.1191]
[1761921472953,4.0027724,3863.0,3862.9,0.1191]
[1761921473271,1.4940244,3863.0,3862.9,0.1191]
[1761921473972,0.5983204,3863.0,3862.9,0.1191]
[1761921474264,0.868004,3863.0,3862.9,0.1191]
[1761921474670,0.4902,3863.4,3862.9,0.1191]
[1761921474883,0.40604728,3863.7,3863.3,0.4517]
[1761921475238,0.001,3863.8,3863.3,0.4517]
[1761921475432,0.001,3863.8,3863.4,0.02588393]
[1761921476171,0.001,3863.8,3863.7,0.4517]
[1761921476952,0.7707,3863.8,3861.9,0.496]
[1761921477142,0.1861,3863.6,3862.5,0.494]
[1761921477472,0.1861,3863.6,3862.2,0.496]
[1761921477799,0.896004,3863.5,3862.3,0.0258913]
[1761921478279,0.405504,3863.7,3862.5,0.494]
[1761921478577,0.405504,3863.7,3862.6,0.02588929]
[1761921480472,0.406504,3863.8,3863.0,0.51988661]
[1761921480856,0.001,3863.8,3863.0,0.51988661]
[1761921482088,0.001,3863.8,3863.7,0.4517]
[1761921482293,0.001,3863.8,3863.7,1.85138]
[1761921482446,0.001,3863.8,3863.7,2.34538]
[1761921482644,0.0002,3863.8,3863.7,4.93357266]
[1761921483044,0.0002,3863.8,3863.7,11.27729036]
[1761921483241,0.0002,3863.8,3863.7,12.66385084]
[1761921484058,0.0002,3863.8,3863.7,6.32013314]
[1761921484260,0.0002,3863.8,3863.7,2.34538]
[1761921484459,0.0002,3863.8,3863.7,4.93357266]
[1761921484993,0.0002,3863.8,3863.7,2.34538]
[1761921485189,0.0002,3863.8,3863.7,1.85138]
[1761921485627,0.0002,3863.8,3863.7,1.39968]
[1761921485921,1.195804,3863.8,3862.5,0.002]
[1761921486096,0.1379804,3863.7,3862.5,0.002]
[1761921486292,0.405504,3863.6,3862.6,0.494]
[1761921486616,0.6284804,3863.7,3862.6,0.494]
[1761921486777,0.1379804,3863.7,3863.0,0.02588661]
[1761921486981,0.0002,3863.8,3863.6,0.4517]
[1761921487224,0.0002,3863.8,3863.7,0.47758192]
[1761921487518,0.0002,3863.8,3863.7,0.4517]
[1761921487717,0.0002,3863.8,3863.2,1.52848]
[1761921487718,0.4837,3863.8,3863.2,0.1288]
[1761921487882,0.9741,3863.8,3863.2,0.1288]
[1761921488079,0.4837,3863.8,3863.2,0.1288]
[1761921488279,0.4837,3863.8,3862.9,0.6131]
[1761921488507,0.4837,3863.8,3862.9,0.333258]
[1761921488715,0.4837,3863.8,3862.9,0.1191]
[1761921489217,0.9741,3863.8,3862.9,0.1191]
[1761921489515,0.0002,3863.8,3863.0,2.6145232]
[1761921489715,0.0002,3863.8,3863.0,0.02588661]
[1761921489915,0.0002,3863.8,3862.9,0.1191]
[1761921490119,0.4907,3863.8,3862.9,0.1191]
[1761921490718,0.0002,3863.8,3863.0,0.02588661]
[1761921493299,0.0002,3863.8,3862.9,0.6131]
[1761921493498,0.0002,3863.8,3863.0,0.02588661]
[1761921493698,0.0002,3863.8,3863.1,0.47562473]
[1761921494032,0.4905,3863.7,3862.9,0.1191]
[1761921495702,0.0002,3863.8,3863.0,0.02588661]
[1761921496041,0.0002,3863.8,3863.7,0.4517]
[1761921496240,0.0002,3863.8,3863.7,0.47758192]
[1761921496409,0.0002,3863.8,3863.7,0.9289]
[1761921496613,0.0002,3863.8,3863.7,5.70604961]
[1761921496821,0.0002,3863.8,3863.7,3.09197503]
[1761921497028,0.0002,3863.8,3863.7,4.91677266]
[1761921497206,0.0002,3863.8,3863.7,2.32858]
[1761921497406,0.0002,3863.8,3863.7,1.85138]
[1761921498440,0.0002,3863.8,3856.9,11.1174207]
[1761921498441,0.405504,3863.7,3862.1,0.1932]
[1761921498639,0.2777,3863.0,3862.1,0.1932]
[1761921498963,0.683204,3863.0,3862.1,0.007]
[1761921499110,1.146704,3863.0,3862.1,0.007]
[1761921501461,0.683204,3863.0,3862.1,0.1921]
[1761921501679,1.146704,3863.0,3862.1,0.007]
[1761921502533,0.4635,3863.4,3862.1,0.1921]
[1761921502856,0.896504,3863.0,3862.1,0.007]
[1761921503019,1.0267048,3863.0,3862.1,0.007]
[1761921503221,1.4902048,3863.0,3862.1,0.007]
[1761921505915,1.4902048,3863.0,3862.1,0.1921]
[1761921506619,1.4902048,3863.0,3862.1,0.007]
[1761921506620,1.360004,3863.0,3862.1,0.007]
[1761921506818,12.69750466,3863.0,3862.1,0.007]
[1761921507125,4.39431482,3862.3,3862.1,0.007]
[1761921507350,9.89213282,3862.3,3862.1,0.007]
[1761921507660,10.35563282,3862.3,3862.1,0.007]
[1761921507982,10.35483282,3862.3,3862.1,0.007]
[1761921508153,11.66896642,3862.3,3862.1,0.007]
[1761921508517,9.0798356,3862.3,3862.1,0.007]
[1761921509258,11.66896642,3862.3,3862.1,0.007]
[1761921509459,9.0798356,3862.3,3862.1,0.007]
[1761921509623,7.2601216,3862.3,3862.1,0.007]
[1761921509819,5.946788,3862.3,3862.1,0.007]
[1761921510421,1.359704,3862.3,3862.1,0.007]
[1761921512969,0.405504,3862.3,3862.1,0.007]
[1761921513874,0.901004,3862.3,3862.1,0.007]
[1761921515439,0.405504,3862.3,3862.1,0.007]
[1761921515643,0.405504,3861.8,3861.7,0.002]
[1761921515850,34.90249554,3861.8,3861.5,0.002]
[1761921516081,41.35663273,3861.6,3861.5,0.002]
[1761921516580,41.81313273,3861.6,3861.5,0.002]
[1761921518489,42.16473783,3861.6,3861.5,0.002]
[1761921519551,41.81313273,3861.6,3861.5,0.002]
[1761921519799,42.27963254,3861.6,3861.5,0.002]
[1761921520357,14.46002897,3861.6,3861.5,0.002]
[1761921520857,35.81558397,3861.6,3861.5,0.002]
[1761921521191,42.27963254,3861.6,3861.5,0.002]
[1761921522755,7.36164681,3861.6,3861.5,0.002]
[1761921522956,2.82047981,3861.6,3861.5,0.002]
[1761921523199,2.27240815,3861.6,3861.5,0.002]
[1761921523495,0.90362834,3861.6,3861.5,0.002]
[1761921523798,1.36052834,3861.6,3861.5,0.002]
[1761921524001,1.76603234,3861.6,3861.5,0.002]
[1761921524307,1.36052834,3861.6,3861.5,0.002]
[1761921524504,2.759484,3861.6,3861.5,0.002]
[1761921524803,5.9715704,3861.6,3861.5,0.002]
[1761921525298,3.0540424,3861.6,3861.5,0.002]
[1761921525662,19.67682456,3861.6,3861.5,0.002]
[1761921525983,15.35830656,3861.6,3861.5,0.002]
[1761921526174,21.82235513,3861.6,3861.5,0.002]
[1761921526576,9.2806694,3861.6,3861.5,0.002]
[1761921526796,8.49175456,3861.6,3861.5,0.002]
[1761921527198,3.0540424,3861.6,3861.5,0.002]
[1761921527410,5.8204924,3861.6,3861.5,0.002]
[1761921527629,4.8608984,3861.6,3861.5,0.002]
[1761921527920,2.5971424,3861.6,3861.5,0.002]
[1761921528121,3.0540424,3861.6,3861.5,0.002]
[1761921528276,5.64364256,3861.6,3861.5,0.002]
[1761921528478,22.35162513,3861.6,3861.5,0.002]
[1761921529102,5.9982424,3861.6,3861.5,0.002]
[1761921529416,7.96898556,3861.6,3861.5,0.002]
[1761921530392,2.5971424,3861.6,3861.5,0.002]
[1761921530788,5.0637874,3861.6,3861.5,0.002]
[1761921531384,2.5971424,3861.6,3861.5,0.002]
[1761921531793,0.7000624,3861.6,3861.5,0.002]
[1761921532016,0.405504,3861.6,3861.5,0.002]
[1761921532189,0.872104,3861.6,3861.5,0.002]
[1761921532515,1.350904,3861.6,3861.5,0.002]
[1761921532882,0.872104,3861.6,3861.5,0.002]
[1761921533107,0.404704,3861.6,3861.5,0.002]
[1761921533308,1.0703524,3861.6,3861.5,0.002]
[1761921533696,0.6037524,3861.6,3861.5,0.4832]
[1761921533891,0.404704,3861.6,3861.5,0.4832]
[1761921534109,0.404704,3861.6,3861.5,0.002]
[1761921534694,0.871304,3861.6,3861.5,0.002]
[1761921534900,0.404704,3861.6,3861.5,0.002]
[1761921535989,0.404704,3861.6,3861.5,0.4832]
[1761921536188,0.404704,3861.6,3861.5,0.9525]
[1761921537130,0.404704,3861.6,3861.5,0.002]
[1761921537813,0.404704,3861.6,3861.5,0.4832]
[1761921538133,0.404704,3861.6,3861.5,0.9525]
[1761921539028,0.404704,3861.6,3861.5,0.4832]
[1761921539231,0.404704,3861.6,3861.5,0.9525]
[1761921539526,0.404704,3861.6,3861.5,0.4832]
[1761921539831,0.404704,3861.6,3861.5,0.9525]
[1761921540039,0.404704,3861.6,3861.5,0.4832]
[1761921540486,0.404704,3861.6,3861.5,0.9525]
[1761921540686,0.404704,3861.6,3861.5,0.4832]
[1761921540886,0.404704,3861.6,3861.5,0.9525]
[1761921541313,0.871304,3861.6,3861.5,0.4832]
[1761921541516,2.99517122,3861.5,3861.1,0.007]
[1761921541847,37.85366786,3861.5,3861.1,0.007]
[1761921542047,37.50206276,3861.5,3861.1,0.007]
[1761921542459,13.46974776,3861.5,3861.1,0.007]